Cogmind - Beta 17 @@@ ROGUE MODE // 2026.06.28 @ 03:41:00 Player: TheSkyeDoctor Result: Destroyed by S-27 Virus with Autogun Performance ------------- Evolutions (3) 1500 Regions Visited (5) 1000 Robots Destroyed (58) 290 Value Destroyed (1635) 1635 Prototype IDs (2) 40 Alien Tech Used (0) 0 Bonus (6882) 6882 TOTAL SCORE: 11347 Bonus ------- Follower Combat Kills 132 Prayed to X0-1V1 5000 Major X0-1V1 Interference 1750 Cogmind --------- Core Integrity 0/640 Matter 187/300 Energy 97/100 System Corruption 0% Temperature Warning (341) Movement Core (500) Ox9 Location -7/Lower Caves Parts ------- > --- POWER (1) -------- (None) > --- PROPULSION (4) --- (None) > --- UTILITY (3) ------ Large Storage Unit > --- WEAPON (9) ------- Enhanced Autogun Power Maul Katana > --- INVENTORY (15) --- Deuterium Engine Light Treads Light Treads Armored Treads Armored Treads Wheel Large Matter Pod (150) Structural Scanner Shock Rifle Datajack Peak State ------------ > --- POWER ------------ Nuclear Core > --- PROPULSION ------- Armored Treads Armored Treads Advanced Treads Advanced Treads > --- UTILITY ---------- Large Storage Unit Targeting Computer X0-1V1's Piety Tracker > --- WEAPON ----------- EM Pulse Cannon Enhanced Autogun Assault Cannon Flak Cannon Power Maul > --- INVENTORY -------- Deuterium Engine Light Treads Light Treads Armored Treads Armored Treads Wheel Large Matter Pod Structural Scanner Medium Armor Plating Improved Medium Armor Plating Shock Rifle Field Laser Datajack Katana [Rating: 50] Favorites ----------- Power Nuclear Core Engine Ion Engine Power Core Nuclear Core Propulsion Light Treads Treads Light Treads Utility Seismic Detector Device Seismic Detector Storage Large Storage Unit Processor Targeting Computer Protection Improved Medium Armor Plating Weapon Light Assault Rifle Energy Gun Medium Laser Energy Cannon EM Pulse Cannon Ballistic Gun Light Assault Rifle Ballistic Cannon Flak Cannon Impact Weapon Heavy Hammer Slashing Weapon Katana Build | -11 -10 -9 -8 -7 -7 ------- Run | Yrd Mat Mat Mat Fac Low Slots Evolved 6 | . . 2 2 2 . Power . | . . . . . . Propulsion 2 | . . . . 2 . Utility 2 | . . 1 1 . . Weapon 2 | . . 1 1 . . Parts Attached 34 | 8 3 10 5 4 4 Power 4 | 2 . 2 . . . Engine 3 | 2 . 1 . . . Core 1 | . . 1 . . . Reactor . | . . . . . . Propulsion 9 | 2 2 3 . 2 . Treads 9 | 2 2 3 . 2 . Leg . | . . . . . . Wheel . | . . . . . . Hover . | . . . . . . Flight . | . . . . . . Utility 8 | 2 1 2 1 . 2 Device 2 | 1 . 1 . . . Storage 3 | 1 1 1 . . . Processor 1 | . . . 1 . . Hackware . | . . . . . . Protection 2 | . . . . . 2 Artifact . | . . . . . . Weapon 13 | 2 . 3 4 2 2 Energy Gun 3 | 1 . . 1 . 1 Energy Cannon 2 | . . 1 1 . . Ballistic Gun 3 | 1 . 1 1 . . Ballistic Cannon 3 | . . . 1 1 1 Launcher . | . . . . . . Special Weapon . | . . . . . . Impact Weapon 1 | . . . . 1 . Slashing Weapon 1 | . . 1 . . . Piercing Weapon . | . . . . . . Special Melee Weapon . | . . . . . . Unidentified Prototypes 2 | . . 1 1 . . Parts Lost 18 | . 1 4 1 . 12 Power 3 | . 1 1 . . 1 Propulsion 5 | . . 1 . . 4 Utility 3 | . . . . . 3 Weapon 7 | . . 2 1 . 4 Highest Loss Streak 12 | . 1 2 1 . 12 To Critical Strikes . | . . . . . . Average Backups 11 | 1 7 12 14 13 13 Power . | . . . 1 1 1 Propulsion 4 | . 2 4 7 5 5 Utility 3 | . 3 4 4 4 3 Weapon 1 | . 1 1 1 2 2 Tool/Special . | . . . . . . Unused Backups 13 | . 1 2 1 1 8 Power 1 | . . . . . 1 Propulsion 8 | . 1 2 1 . 4 Utility 3 | . . . . 1 2 Weapon . | . . . . . . Tool/Special 1 | . . . . . 1 Average Slot Usage (%) 98 | . 100 98 98 99 94 Engine 6 | . 14 7 . . . Core 3 | . . 1 9 7 6 Treads 24 | . 28 21 18 29 28 Device 16 | . 14 21 18 10 6 Storage 10 | . 14 11 9 7 6 Processor 3 | . . . 9 7 6 Energy Gun 5 | . 14 1 . . 4 Energy Cannon 6 | . . 7 14 7 6 Ballistic Gun 11 | . 14 13 6 7 6 Ballistic Cannon 2 | . . . 3 11 9 Impact Weapon 5 | . . 8 9 7 6 Peak Build Rating 50 | 7 9 32 40 49 50 Average Rating 26 | 5 7 26 36 46 46 On Entrance 22 | . 7 9 32 40 49 Avg Prop Armor Cover (%) . | . . . . . . Naked Turns . | . . . . . . Heaviest Build 62 | 14 19 41 50 51 62 Greatest Support 84 | 40 40 40 40 84 84 Greatest Overweight (x) 11 | . . 1 1 . 11 Average Overweight (x) . | . . . 1 . . Largest Inventory Capacity 15 | 8 10 15 15 15 15 Average Capacity 13 | 7 9 14 15 15 15 Most Carried 15 | 3 10 15 15 14 15 Average Carried 11 | 1 7 12 14 13 13 Final Capacity 15 | 8 10 15 15 15 15 Final Carried 15 | 3 10 15 15 13 10 Class Distribution -------------------- 58% | Mutant 41% | Gunner Dominant Class ---------------- Mutant | -10/Materials Mutant | -9/Materials Gunner | -8/Materials Gunner | -7/Factory Gunner | -7/Lower Caves Resources | -11 -10 -9 -8 -7 -7 ----------- Run | Yrd Mat Mat Mat Fac Low Matter Collected 1125 | 285 229 117 197 123 174 Remotely . | . . . . . . Salvage Created 2307 | 95 474 761 533 26 418 Parts 103 | 9 26 33 15 1 19 Haulers Intercepted 7 | . 2 3 2 . . Recyclers Shooed 2 | . 1 1 . . . Parts Field Recycled . | . . . . . . Retrieved Matter . | . . . . . . Parts Self-Destructed 20 | . . . . . 20 Prevented 2 | . . . . . 2 Parts Restored . | . . . . . . Kills | -11 -10 -9 -8 -7 -7 ------- Run | Yrd Mat Mat Mat Fac Low Combat Hostiles Destroyed 40 | . 10 13 6 . 11 Melee 3 | . . 1 . . 2 Guns 16 | . 10 5 . . 1 Cannons 16 | . . 5 3 . 8 AOE 1 | . . . 1 . . Classes Destroyed 11 | 2 4 3 2 . . Tunneler 3 | 2 . 1 . . . Hauler 7 | . 2 3 2 . . Recycler 2 | 1 . . 1 . . Mechanic 1 | . . . 1 . . Operator 1 | . . . 1 . . Watcher 4 | . 1 1 1 1 . Swarmer 8 | . 3 1 . . 4 Grunt 26 | . 7 8 4 . 7 Brawler 1 | . . 1 . . . Duelist 1 | . . 1 . . . Sentry 4 | . . 2 2 . . Best Kill Streak 7 | 2 3 3 2 1 7 Combat Bots Only 7 | . 3 3 2 . 7 Max Kills in Single Turn 1 | 1 1 1 1 1 1 Gunslinging . | . . . . . . Exploded 1 | . . . 1 . . Melee 1 | . . 1 . . 1 Uniques/NPCs Destroyed . | . . . . . . Combat | -11 -10 -9 -8 -7 -7 -------- Run | Yrd Mat Mat Mat Fac Low Hostile Shots Fired 284 | . 51 55 33 . 145 Missed 67 | . 19 19 6 . 23 Hits 217 | . 32 36 27 . 122 Melee 6 | . . 6 . . . Projectile 211 | . 32 30 27 . 122 AOE 1 | . . . 1 . . Critical Strikes 7 | . . . 2 . 5 Damage Taken 3730 | . 406 566 484 . 2274 Core 781 | . 54 55 32 . 640 Absorbed by Shields . | . . . . . . Core Remaining (%) 89 | 100 78 86 94 . . Volleys Fired 117 | 5 44 37 18 1 12 Largest 4 | 2 2 3 3 4 4 Hottest 188 | 70 70 90 163 162 188 Shots Fired 289 | 10 87 92 49 4 47 Gun 203 | 10 87 76 11 1 18 Cannon 86 | . . 16 38 3 29 Launcher . | . . . . . . Special . | . . . . . . Kinetic 162 | 5 44 58 21 3 31 Thermal 72 | 5 43 18 . . 6 Explosive . | . . . . . . Electromagnetic 55 | . . 16 28 1 10 Robot Hit Streak 19 | 8 17 19 11 7 10 Robot Miss Streak 5 | . 5 3 5 . 4 Penetration Max . | . . . . . . Secondary Targets 1 | . 1 . . . . Max Gunslinging Chain 1 | . 1 . . . . Shots Hit Robots 214 | 8 58 75 44 1 28 Core Hits 92 | 4 31 24 14 1 18 Critical Kills . | . . . . . . Critical Parts Destroyed 2 | . . 1 1 . . Critical Strikes 8 | 1 3 2 1 . 1 Burn 5 | 1 3 1 . . . Smash 2 | . . 1 1 . . Sever 1 | . . . . . 1 Melee Attacks 32 | . . 12 13 1 6 Impact 21 | . . 4 13 1 3 Slashing 11 | . . 8 . . 3 Piercing . | . . . . . . Sneak Attacks 8 | . . 3 5 . . Combat Hostiles . | . . . . . . Follow-up Attacks . | . . . . . . Damage Inflicted 4174 | 87 599 1380 1397 40 671 Guns 1376 | 87 599 467 43 . 180 Cannons 1575 | . . 409 740 40 386 Explosions 60 | . . . 60 . . Melee 1163 | . . 504 554 . 105 Ramming . | . . . . . . Kinetic 1009 | 26 195 293 209 . 286 Thermal 733 | 61 404 174 60 . 34 Explosive . | . . . . . . Electromagnetic 1269 | . . 409 574 40 246 Impact 858 | . . 260 554 . 44 Slashing 305 | . . 244 . . 61 Piercing . | . . . . . . Highest Corruption . | . . . . . . Average Corruption . | . . . . . . Corruption Purged . | . . . . . . Corruption Blocked . | . . . . . . Overload Shots . | . . . . . . Overflow Damage 335 | . . 129 206 . . Projectiles 23 | . . 10 13 . . Explosions . | . . . . . . Melee 312 | . . 119 193 . . Knockbacks 11 | . . 2 9 . . Impact 4 | . . 2 2 . . Kinetic 6 | . . . 6 . . Secondary 1 | . . . 1 . . Self-Inflicted Damage . | . . . . . . Shots . | . . . . . . Rammed . | . . . . . . Targets Rammed . | . . . . . . Kicked . | . . . . . . Crushed . | . . . . . . Highest Temperature 631 | 60 136 233 310 81 631 Average Temperature 127 | 24 39 78 135 43 363 Received Heat Transfer 1308 | . 159 159 243 . 747 Effects 32 | . . . . . 32 Shutdowns 5 | . . . . . 5 Energy Bleed 3 | . . . . . 3 Interference 4 | . . . . . 4 Matter Decay 4 | . . . . . 4 Short Circuit 2 | . . . . . 2 Damage (major) 10 | . . . . . 10 Damage (core) 4 | . . . . . 4 Siege Activations . | . . . . . . Martial Activations . | . . . . . . Shielding Activations . | . . . . . . Robots Disrupted . | . . . . . . Combat Hostiles . | . . . . . . Robots Corrupted 7 | . . 3 4 . . Combat Hostiles 4 | . . 2 2 . . Parts Fried 16 | . . 5 11 . . Impact Corruptions 11 | . . 4 7 . . Robots Melted . | . . . . . . Combat Hostiles . | . . . . . . Parts Melted 5 | 1 2 2 . . . Heat Transferred 2331 | 259 1406 592 . . 74 Parts Sabotaged . | . . . . . . Parts Stolen . | . . . . . . Parts Stripped . | . . . . . . Power Chain Reactions 1 | . . . 1 . . Alert | -11 -10 -9 -8 -7 -7 ------- Run | Yrd Mat Mat Mat Fac Low Maximum Alert Level 1 | . . 1 . . . Low Security (%) 98 | 100 100 94 100 100 . Level 1 1 | . . 5 . . . Level 2 . | . . . . . . Level 3 . | . . . . . . Level 4 . | . . . . . . Level 5 . | . . . . . . High Security . | . . . . . . Max Security . | . . . . . . Peak Influence 314 | 5 70 314 149 7 . Initial 124 | . . 6 124 . . Average 43 | 1 19 87 45 . . Influence Increases 1460 | 15 271 720 216 8 230 Destroy 0b10 Robot/C 880 | . 200 340 120 . 220 Destroy 0b10 Robot/NC 90 | 15 15 25 30 5 . Destroy Leader 212 | . 56 108 36 2 10 Allied During Kill 11 | . . 11 . . . Successful Hack 16 | . . 8 8 . . Disable Machine 15 | . . . 15 . . Destroy Structure 8 | . . . 7 1 . Miscellaneous 228 | . . 228 . . . Influence Decreases 1460 | 15 255 440 512 8 230 Entered New Map 182 | . . 10 172 . . Time Decay 1082 | 15 255 403 291 8 110 Lost Part 157 | . . 27 10 . 120 Purge Threat 39 | . . . 39 . . Squads Dispatched 6 | . 3 2 1 . . Investigation 3 | . 2 1 . . . Extermination . | . . . . . . Reinforcement 3 | . 1 1 1 . . Assault . | . . . . . . Garrison . | . . . . . . Intercept . | . . . . . . Searches Triggered . | . . . . . . Construction Impeded . | . . . . . . Haulers Reinforced . | . . . . . . Active Scanning Responses . | . . . . . . Cargo Convoy Interrupts . | . . . . . . Stealth | -11 -10 -9 -8 -7 -7 --------- Run | Yrd Mat Mat Mat Fac Low Distress Signals 3 | . 1 2 . . . Communications Jammed . | . . . . . . Distress Signals . | . . . . . . Times Spotted 72 | . 25 21 9 1 16 Peak Tracking Total 11 | . 5 3 2 1 11 Tactical Retreats . | . . . . . . Traps | -11 -10 -9 -8 -7 -7 ------- Run | Yrd Mat Mat Mat Fac Low Traps Triggered 4 | . 4 . . . . Indirectly . | . . . . . . Trap Hack Attempts . | . . . . . . Triggered . | . . . . . . Disarmed . | . . . . . . Reprogrammed . | . . . . . . Reused . | . . . . . . Traps Extracted . | . . . . . . Installed . | . . . . . . Triggered . | . . . . . . Objects Rigged 2 | . . 1 1 . . Machines | -11 -10 -9 -8 -7 -7 ---------- Run | Yrd Mat Mat Mat Fac Low Machines Disabled 2 | . . . 1 . 1 Max in Single Turn 1 | . . . 1 . 1 Garrison Access 1 | . . . 1 . . Machines Repaired . | . . . . . . Machines Dismantled . | . . . . . . Machines Sabotaged . | . . . . . . Overloaded Fab Kills . | . . . . . . Hacking | -11 -10 -9 -8 -7 -7 --------- Run | Yrd Mat Mat Mat Fac Low Machines Accessed 12 | . 2 2 7 1 . Terminals 11 | . 2 2 6 1 . Fabricators . | . . . . . . Repair Stations . | . . . . . . Recycling Units . | . . . . . . Scanalyzers . | . . . . . . Garrison Access 1 | . . . 1 . . Total Hacks 28 | . 5 4 18 1 . Successful 4 | . . 1 3 . . Failed 24 | . 5 3 15 1 . Catastrophic 6 | . . 2 3 1 . Database Lockouts . | . . . . . . Manual 28 | . 6 4 17 1 . Terminals 27 | . 5 4 17 1 . Fabricators . | . . . . . . Repair Stations . | . . . . . . Recycling Units . | . . . . . . Scanalyzers . | . . . . . . Garrison Access 1 | . . . 1 . . Terminal Hacks 1 | . . . 1 . . Unreport Threat 1 | . . . 1 . . Fabricator Hacks . | . . . . . . Repair Station Hacks . | . . . . . . Recycling Unit Hacks . | . . . . . . Scanalyzer . | . . . . . . Garrison Access Hacks 1 | . . . 1 . . Seal Access 1 | . . . 1 . . Unauthorized Hacks 2 | . . 1 1 . . Terminals 2 | . . 1 1 . . Detonate 2 | . . 1 1 . . Fabricators . | . . . . . . Repair Stations . | . . . . . . Recycling Units . | . . . . . . Scanalyzers . | . . . . . . Garrison Access . | . . . . . . Data Cores Recovered . | . . . . . . Used . | . . . . . . Hacking Detections 10 | . 2 1 6 1 . Full Trace Events 3 | . . 1 2 . . Feedback Events . | . . . . . . Feedback Blocked . | . . . . . . Robot Schematics Acquired . | . . . . . . Robots Built . | . . . . . . Authchips . | . . . . . . Time . | . . . . . . Total Robot Build Rating . | . . . . . . Part Schematics Acquired . | . . . . . . Parts Built . | . . . . . . Authchips . | . . . . . . Time . | . . . . . . Total Part Build Rating . | . . . . . . Part Studies Acquired . | . . . . . . Parts Repaired . | . . . . . . Time . | . . . . . . Parts Recycled . | . . . . . . Recycled Matter . | . . . . . . Retrieved Matter . | . . . . . . Retrieved Components . | . . . . . . Parts Scanalyzed . | . . . . . . Part Schematics Acquired . | . . . . . . Parts Damaged . | . . . . . . Bothacking | -11 -10 -9 -8 -7 -7 ------------ Run | Yrd Mat Mat Mat Fac Low Used RIF Installer . | . . . . . . Robots Hacked . | . . . . . . Non-combat . | . . . . . . Combat . | . . . . . . Robot Hacks Applied . | . . . . . . Relay Couplers Released . | . . . . . . Fabnet Peak Effective % . | . . . . . . Robots Rewired . | . . . . . . Allies Hacked . | . . . . . . Hacks Repelled . | . . . . . . Allies | -11 -10 -9 -8 -7 -7 -------- Run | Yrd Mat Mat Mat Fac Low Total Allies 1 | . . 1 . . . Largest Group 1 | . . 1 . . . Highest-Rated Group 57 | . . 57 . . . Highest-Rated Ally 57 | . . 57 . . . Total Orders . | . . . . . . Ally Attacks 9 | . . 9 . . . Total Damage 344 | . . 344 . . . Kills 4 | . . 4 . . . Allies Corrupted . | . . . . . . Allies Melted . | . . . . . . X0-1V1 Amusement Gains 111 | . 11 5 10 . 85 Good Acts 7 | . . 3 . 1 3 Bad Acts 10 | . . 7 . 1 2 Intel | -11 -10 -9 -8 -7 -7 ------- Run | Yrd Mat Mat Mat Fac Low Active Infowar (turns) 3240 | 49 1141 1086 786 178 . Seismic 3240 | 49 1141 1086 786 178 . Robot Analysis Total . | . . . . . . Derelict Logs Recovered . | . . . . . . Drone Launches . | . . . . . . Drone Recoveries . | . . . . . . Exploration | -11 -10 -9 -8 -7 -7 ------------- Run | Yrd Mat Mat Mat Fac Low Turns Passed 3835 | 119 1141 1086 786 420 283 Spaces Moved 1781 | 62 609 451 260 260 139 Core 7 | 6 . . . . 1 Treads 1774 | 56 609 451 260 260 138 Legs . | . . . . . . Wheels . | . . . . . . Hover . | . . . . . . Flight . | . . . . . . Fastest Speed 50 | 50 160 160 250 157 157 Average Speed 182 | 149 160 199 250 157 160 Slowest Speed 600 | 160 160 240 250 157 600 Overloaded Moves . | . . . . . . Propulsion Burnouts . | . . . . . . Robots Hopped . | . . . . . . Potential Cave-ins 7 | . . 7 . . . Cave-ins Triggered . | . . . . . . Exploration Rate (%) 34 | 4 89 47 28 7 31 Regions Visited 5 Branch Regions 1 Pre-discovered Areas . | . . . . . . Known Exits Taken . | . . . . . . Unknown Exits Taken 5 | 1 1 1 1 1 . Scrap Searched 2 | . . . . . 2 Spaces Dug 4 | . . . 3 1 . Terrain Destroyed 9 | . . . 7 1 1 Melee 4 | . . . 3 1 . Projectile 1 | . . . . . 1 AOE 4 | . . . 4 . . Terrain Rammed . | . . . . . . Walls Destroyed . | . . . . . . Machines Disabled . | . . . . . . Actions | -11 -10 -9 -8 -7 -7 --------- Run | Yrd Mat Mat Mat Fac Low Total 2097 | 76 699 550 337 268 167 Wait 92 | . 30 25 37 . . Move 1776 | 61 608 450 259 259 139 Hop . | . . . . . . Pick Up 28 | 2 9 10 3 2 2 Fast Attach 11 | 7 . 2 2 . . Attach 15 | . 1 4 2 3 5 Detach 2 | . . . . . 2 Swap 11 | 1 3 5 1 1 . Drop 13 | . 4 5 2 1 1 Fire 117 | 5 44 37 18 1 12 Melee 32 | . . 12 13 1 6 Ram . | . . . . . . Kick . | . . . . . . Crush . | . . . . . . Escape Stasis . | . . . . . . Rewire . | . . . . . . Trap . | . . . . . . Miscellaneous . | . . . . . . Route ------- -11/Scrapyard -10/Materials (discovered 5 exits: *Mat x2 / [*Min x2] / [*Sub]) -9/Materials (discovered 2 exits: *Mat / [*Min]) -8/Materials -7/Factory -7/Lower Caves History --------- Turn | Location | Event 14 | -11/Scrapyard | Discovered new exit (range 16) 120 | -11/Scrapyard | Entered Materials 292 | -10/Materials | Discovered new exit (range 4) 311 | -10/Materials | Build established: Mutant 611 | -10/Materials | Discovered new exit (range 11) 914 | -10/Materials | Discovered new exit (range 16) 914 | -10/Materials | Discovered new exit (range 12) 1066 | -10/Materials | Discovered new exit (range 14) 1165 | -10/Materials | Prayed at D.C.S.S. Altar Unit 1261 | -10/Materials | Entered another Materials area 1261 | -9/Materials | Evolved 2 slots: Utility x1, Weapon x1 1633 | -9/Materials | Discovered new exit (range 7) 1711 | -9/Materials | X0-1V1 sent allied Chaos Knight (x1) 2126 | -9/Materials | X0-1V1 announced a LAN party 2147 | -9/Materials | X0-1V1 vaporized surrounding terrain (radius 17) 2280 | -9/Materials | Discovered new exit (range 5) 2292 | -9/Materials | X0-1V1 added 0b10 threat records associated with you (considerable) 2347 | -9/Materials | Entered another Materials area 2347 | -8/Materials | Evolved 2 slots: Utility x1, Weapon x1 2635 | -8/Materials | Build established: Gunner 3128 | -8/Materials | Discovered new exit (range 3) 3133 | -8/Materials | Entered Factory 3133 | -7/Factory | Evolved 2 slots: Propulsion x2 3311 | -7/Factory | X0-1V1 mutated your Utility slot to Weapon slot 3498 | -7/Factory | Discovered new exit (range 22) 3553 | -7/Factory | Entered Lower Caves 3757 | -7/Lower Caves | Ranged accuracy permanently improved by X0-1V1 (+6%; -60 max core) 3808 | -7/Lower Caves | Weapon slot count temporarily expanded by X0-1V1 (+4) 3820 | -7/Lower Caves | Core integrity fell below 50% 3825 | -7/Lower Caves | Core integrity fell below 20% 3836 | -7/Lower Caves | Destroyed by S-27 Virus with Autogun Last Messages --------------- 03820_ Critical hit (Burn: +37). 03822_ Adv. Treads destroyed. 03822_ Arm. Treads destroyed. 03823_ Overheating: Core damaged (-96). 03823_ X0-1V1 is amused. 03824_ Overheating: Core damaged (-89). 03824_ G-47 Trooper Aluminum Leg severed. 03825_ Power failure, Nuclear Core shutdown. 03826_ Critical hit (Burn: +37). 03827_ Aluminum Leg fries itself beyond repair. X0-1V1's Piety Tracker suddenly appears amidst shimmering waves of color. 03827_ G-47 Trooper destroyed. 03827_ Nuclear Core destroyed. 03829_ Imp. Medium Armor Plating destroyed. 03829_ Acquired 42 matter. 03830_ Slug Cannon destroyed. 03831_ Overheating: Matter decay (-32). 03832_ Critical hit (Burn: +37). 03836_ X0-1V1 guffaws! Map ----- +----------------------------------------------------+ | ???????????# ????# #????#### #????# | | ???????????# ??????# #????# #????? | | ????????????? ????????# ###### #??### | | ?????????????? ??????????# ### # | | ???????????????? ?????????????######### ## # # | | ??????????????????????????????????????# ### ## | | ?????????????????????????????????????## ## # # | | ??????????????????????????????????#### ##= | | ??????????????????????????????## ## !% | | ??????????????????????????????# | | ??????????????????????????????# ##### # | | ??????????????????????????????# ## ##??# # | | ??????????????????????????????# #?## ##### | | ?????????????????????????????# ???## ##### | | ?????????????????????????????# ????## #??## | | ????????????????##### ##########????## ##### | | ????????????????? %#?##### | | ???????????????????? ### | | ???????????????????++####### % ###### | | ???????????????????? "#% % % ##????# # | | ????????????????????? ""# ## #?????### | | ??????????????????????# "# #### #???????? | | ??????????????????????#% ""# ##### ##???????? | | ??????????????? ??????# [%"# % #####????????? | | ???????????????""" # %%=/ ! % #???????????? | | ???????????????""" /g*@%/ #% #???????????? | | ???????????????""" /g g%/ ## ##???????????? | | ???????????????""" ; * s/ ## #????????????? | | ????????????? # s%"# #???????????? | | ????????????# ""?# "# #???????????? | | ????????????#"T""###??# "# ##???????????? | | ???????????????"?????? ""# ## ##????????????? | | ????????????????????? "# #?####?????????????? | | ????????????????????+####### #??????????????????? | | ??????????????????????????? %??????????????????? | | ??????????????????????????? ??????????????????? | | ??????????????????????????? %#?????????????????? | | ??????????????????????????? ??????????????????? | | ??????????????????????????? #?????????????????? | | ??????????????????????????? ??????????????????? | | ??????????????????????????? ?????????????????? | | ??????????????????????????? ?????????????????? | | ??????????????????????????? ?????????????????? | | ??????????????????????????? ?????????????????? | | ???????????????????????????## ?????????????????? | | ?????????????????????????????##??????????????????? | | ?????????????????????????????????????????????????? | | ?????????????????????????????????????????????????? | | ?????????????????????????????????????????????????? | | ?????????????????????????????????????????????????? | +----------------------------------------------------+ Best States ------------- Heat Dissipation 34 Energy Generation 14 Energy Capacity 275 Matter Stores 300 Matter Capacity 300 Sight Range 22 Terrain Scan Density 10 Armor Coverage 450 Evasion (%) 40 Targeting Accuracy 5 Recoil Reduction 4 Item Schematics ----------------- None Robot Schematics ------------------ None Fabricated ------------ Nothing Repaired ---------- Nothing Studied --------- None Alien Tech Used ----------------- None Achievements -------------- None Challenges ------------ None Game ------ Seed ModifiedHugeBrace Manual? 0 Play Time 00:22:04 Cumulative 103.6 hours Start 2026.06.28 @ 03:21:12 End 2026.06.28 @ 03:41:00 Sessions 1 Manual Loads 0 Difficulty Rogue Special Mode None Game No. 225 Rogue 225 Adventurer 0 Explorer 0 Win Type - Total 0 Types 0/0/0/0/0/0/0/0/0/0 Lore% 48 Gallery% 49 Achievement% 39 Wizard Run 0 Options --------- Layout 2 ASCII 0 Keyboard 1 Movement Arrows Keybinds 0 Fullscreen 1 Font 24/Smallcaps Map View 50x44 Zoom Use 0% Tactical HUD 1 Map Filters NONE Filters NONE Steam 1 RUN: 877a7dc5-8636-46ef-8436-c414ab3868dd